Cogmind - Beta 13 @@@ ROGUE MODE // 2024.06.13 @ 22:44:00 Player: wojo Result: Destroyed by Y-45 Defender with Beam Rifle Performance ------------- Evolutions (2) 1000 Regions Visited (5) 1000 Robots Destroyed (52) 260 Value Destroyed (1487) 1487 Prototype IDs (6) 120 Alien Tech Used (0) 0 Bonus (35) 35 TOTAL SCORE: 3902 Bonus ------- Follower Combat Kills 35 Cogmind --------- Core Integrity 0/550 Matter 300/300 Energy 100/100 System Corruption 12% Temperature Cool (54) Movement Core (50) Location -8/Materials Parts ------- > --- POWER (1) -------- (None) > --- PROPULSION (2) --- (None) > --- UTILITY (6) ------ Improved Terrain Scan Processor > --- WEAPON (2) ------- (None) > --- INVENTORY (5) ---- Airjet Airjet Improved Heat Sink Makeshift Transmission Jammer Mini Grenade Launcher Peak State ------------ > --- POWER ------------ Light Nuclear Core > --- PROPULSION ------- Xenon Bombardment Thruster Xenon Bombardment Thruster > --- UTILITY ---------- Improved Heat Sink Improved Cooling System Improved Cooling System Improved Cooling System Makeshift Salvage Targeting Computer Makeshift Transmission Jammer > --- WEAPON ----------- Particle Gun Gauss Rifle > --- INVENTORY -------- Grenade Launcher Grenade Launcher [Rating: 41] Favorites ----------- Power Light Nuclear Core Engine Ion Engine Power Core Light Nuclear Core Propulsion Light Treads Treads Light Treads Leg Makeshift Leg Hover Unit Aerolev Unit Flight Unit Xenon Bombardment Thruster Utility Improved Heat Sink Device Improved Heat Sink Storage Small Storage Unit Processor Makeshift Salvage Targeting Computer Weapon Assault Rifle Energy Gun Particle Gun Energy Cannon Beam Cannon Ballistic Gun Assault Rifle Ballistic Cannon Improved Light Cannon Launcher Grenade Launcher Impact Weapon Great Maul Slashing Weapon Makeshift Axe Piercing Weapon Makeshift Spear Build | -11 -10 -10 -10 -9 -8 ------- Run | Yrd Mat Min Exi Min Mat Slots Evolved 4 | . . . . . 4 Power . | . . . . . . Propulsion . | . . . . . . Utility 4 | . . . . . 4 Weapon . | . . . . . . Parts Attached 67 | 7 7 8 8 2 35 Power 9 | 1 1 2 1 . 4 Engine 4 | 1 1 1 . . 1 Core 5 | . . 1 1 . 3 Reactor . | . . . . . . Propulsion 18 | 2 1 1 3 . 11 Treads 4 | 2 1 1 . . . Leg 6 | . . . 2 . 4 Wheel . | . . . . . . Hover 1 | . . . . . 1 Flight 7 | . . . 1 . 6 Utility 18 | 2 2 2 3 . 9 Device 12 | 1 2 1 2 . 6 Storage 2 | 1 . 1 . . . Processor 4 | . . . 1 . 3 Hackware . | . . . . . . Protection . | . . . . . . Artifact . | . . . . . . Weapon 22 | 2 3 3 1 2 11 Energy Gun 8 | 1 . 1 . 1 5 Energy Cannon 1 | . . 1 . . . Ballistic Gun 6 | 1 2 1 1 . 1 Ballistic Cannon 1 | . . . . . 1 Launcher 3 | . 1 . . 1 1 Special Weapon . | . . . . . . Impact Weapon 1 | . . . . . 1 Slashing Weapon 1 | . . . . . 1 Piercing Weapon 1 | . . . . . 1 Special Melee Weapon . | . . . . . . Unidentified Prototypes 2 | . . . . . 2 Parts Lost 27 | . 6 4 . . 17 Power 5 | . 1 1 . . 3 Propulsion 9 | . 2 1 . . 6 Utility 6 | . 2 . . . 4 Weapon 7 | . 1 2 . . 4 Highest Loss Streak 13 | . 3 2 . . 13 To Critical Strikes . | . . . . . . Average Slot Usage (%) 90 | . 92 86 94 100 86 Engine 3 | . 13 1 . . 1 Core 8 | . . 12 14 14 6 Treads 12 | . 22 18 10 . . Leg 6 | . . . 12 28 11 Device 15 | . 13 5 14 14 29 Storage 10 | . 14 19 7 . . Processor 5 | . . . 5 14 16 Energy Gun 9 | . 6 5 14 12 9 Energy Cannon 4 | . . 6 10 . . Ballistic Gun 10 | . 19 16 3 14 6 Naked Turns . | . . . . . . Heaviest Build 24 | 15 16 19 17 13 24 Greatest Support 40 | 40 40 40 35 35 35 Greatest Overweight (x) 7 | . . . . . 7 Average Overweight (x) . | . . . . . . Largest Inventory Capacity 8 | 8 8 8 8 5 5 Average Capacity 6 | 7 8 8 6 5 5 Most Carried 8 | 2 7 8 8 5 5 Average Carried 5 | 1 5 7 6 5 4 Final Capacity 8 | 8 8 8 5 5 5 Final Carried 7 | 2 7 7 5 5 5 Class Distribution -------------------- 73% | Mutant 26% | Scavenger-Mutant Dominant Class ---------------- Mutant | -10/Materials Mutant | -10/Mines Mutant | -10/Exiles Scavenger-Mutant | -9/Mines Scavenger-Mutant | -8/Materials Resources | -11 -10 -10 -10 -9 -8 ----------- Run | Yrd Mat Min Exi Min Mat Matter Collected 1504 | 342 291 173 140 . 558 Remotely . | . . . . . . Salvage Created 2236 | 236 481 212 425 10 872 Parts 125 | 16 29 18 16 5 41 Haulers Intercepted . | . . . . . . Recyclers Shooed 1 | 1 . . . . . Parts Field Recycled . | . . . . . . Retrieved Matter . | . . . . . . Parts Self-Destructed . | . . . . . . Prevented . | . . . . . . Kills | -11 -10 -10 -10 -9 -8 ------- Run | Yrd Mat Min Exi Min Mat Combat Hostiles Destroyed 41 | . 13 7 3 2 16 Melee 1 | . . 1 . . . Guns 30 | . 10 4 2 . 14 Cannons 3 | . . 2 1 . . AOE 7 | . 3 . . 2 2 Classes Destroyed 10 | 3 3 . 1 . 3 Worker 1 | 1 . . . . . Tunneler 6 | 6 . . . . . Recycler 1 | 1 . . . . . Operator 1 | . . . . . 1 Watcher 2 | . 1 . . . 1 Swarmer 11 | . 3 3 . 2 3 Grunt 26 | . 10 4 2 . 10 Duelist 1 | . . . . . 1 Sentry 2 | . . . . . 2 Hunter 1 | . . . 1 . . Best Kill Streak 3 | 3 3 3 1 2 3 Combat Bots Only 3 | . 3 3 1 2 3 Max Kills in Single Turn 2 | 1 2 1 1 1 2 Gunslinging . | . . . . . . Exploded 2 | . 2 . . 1 2 Melee 1 | . . 1 . . . Uniques/NPCs Destroyed . | . . . . . . Combat | -11 -10 -10 -10 -9 -8 -------- Run | Yrd Mat Min Exi Min Mat Hostile Shots Fired 279 | . 90 58 . 11 120 Missed 65 | . 20 13 . 4 28 Damage Taken 3351 | . 868 524 . 81 1878 Core 744 | . 100 75 . 18 551 Absorbed by Shields . | . . . . . . Core Remaining (%) 61 | 100 . . . 22 . Volleys Fired 185 | 24 48 21 31 2 59 Largest 2 | 2 2 2 2 2 2 Hottest 125 | 70 70 80 125 58 120 Shots Fired 364 | 48 96 41 62 4 113 Gun 333 | 48 94 34 46 2 109 Cannon 25 | . . 7 16 . 2 Launcher 6 | . 2 . . 2 2 Special . | . . . . . . Kinetic 185 | 24 65 34 15 2 45 Thermal 173 | 24 29 7 47 . 66 Explosive 6 | . 2 . . 2 2 Electromagnetic . | . . . . . . Robot Hit Streak 13 | 9 8 6 10 12 13 Robot Miss Streak 5 | 4 5 3 3 . 3 Penetration Max 1 | . . . . . 1 Secondary Targets 4 | . 3 1 . . . Max Gunslinging Chain 1 | . 1 1 . . . Shots Hit Robots 237 | 30 58 24 42 2 81 Core Hits 107 | 9 27 13 17 2 39 Critical Kills . | . . . . . . Critical Parts Destroyed 2 | . 2 . . . . Critical Strikes 7 | 1 2 . . . 4 Burn 5 | 1 . . . . 4 Destroy 2 | . 2 . . . . Melee Attacks . | . . . . . . Impact . | . . . . . . Slashing . | . . . . . . Piercing . | . . . . . . Sneak Attacks . | . . . . . . Combat Hostiles . | . . . . . . Follow-up Attacks . | . . . . . . Damage Inflicted 4011 | 413 893 323 724 103 1555 Guns 3325 | 413 779 220 529 . 1384 Cannons 305 | . . 87 195 . 23 Explosions 335 | . 109 . . 103 123 Melee . | . . . . . . Ramming 46 | . 5 16 . . 25 Kinetic 1809 | 226 506 220 197 . 660 Thermal 1821 | 187 273 87 527 . 747 Explosive 335 | . 109 . . 103 123 Electromagnetic . | . . . . . . Impact . | . . . . . . Slashing . | . . . . . . Piercing . | . . . . . . Highest Corruption 12 | . . . . . 12 Average Corruption 12 | . . . . . 12 Corruption Purged . | . . . . . . Corruption Blocked . | . . . . . . Effects 4 | . . . . . 4 Message Errors 2 | . . . . . 2 Matter Fused 2 | . . . . . 2 Overload Shots . | . . . . . . Overflow Damage 12 | . . . . 6 6 Projectiles . | . . . . . . Explosions 12 | . . . . 6 6 Melee . | . . . . . . Knockbacks . | . . . . . . Impact . | . . . . . . Kinetic . | . . . . . . Secondary . | . . . . . . Self-Inflicted Damage 111 | . 39 . . 20 52 Shots 4 | . 1 . . 1 2 Rammed 15 | . 2 9 . . 4 Targets Rammed 16 | . 2 10 . . 4 Kicked . | . . . . . . Crushed 1 | . . 1 . . . Highest Temperature 312 | 72 312 165 243 . 96 Average Temperature 69 | 22 118 72 90 . 27 Received Heat Transfer 1470 | . 471 225 . . 774 Effects 1 | . 1 . . . . Matter Decay 1 | . 1 . . . . Siege Activations . | . . . . . . Robots Corrupted . | . . . . . . Combat Hostiles . | . . . . . . Parts Fried . | . . . . . . Impact Corruptions . | . . . . . . Robots Melted . | . . . . . . Combat Hostiles . | . . . . . . Parts Melted 8 | . 2 . . . 6 Heat Transferred 4773 | 629 814 185 1221 . 1924 Parts Sabotaged . | . . . . . . Parts Stolen . | . . . . . . Parts Stripped . | . . . . . . Power Chain Reactions . | . . . . . . Alert | -11 -10 -10 -10 -9 -8 ------- Run | Yrd Mat Min Exi Min Mat Peak Influence 214 | 40 201 100 . 86 214 Initial 33 | . 26 29 . . 33 Average 64 | 16 74 45 . 30 89 Maximum Alert Level 1 | . 1 . . . 1 Low Security (%) 96 | 100 94 100 . 100 94 Level 1 3 | . 5 . . . 5 Level 2 . | . . . . . . Level 3 . | . . . . . . Level 4 . | . . . . . . Level 5 . | . . . . . . High Security . | . . . . . . Max Security . | . . . . . . Squads Dispatched 4 | . 2 . . . 2 Investigation 3 | . 2 . . . 1 Extermination . | . . . . . . Reinforcement 1 | . . . . . 1 Assault . | . . . . . . Garrison . | . . . . . . Intercept . | . . . . . . Searches Triggered . | . . . . . . Construction Impeded . | . . . . . . Haulers Reinforced . | . . . . . . Active Scanning Responses . | . . . . . . Cargo Convoy Interrupts . | . . . . . . Stealth | -11 -10 -10 -10 -9 -8 --------- Run | Yrd Mat Min Exi Min Mat Distress Signals 3 | . 1 . . . 2 Communications Jammed 49 | . . . . . 49 Distress Signals 48 | . . . . . 48 Times Spotted 63 | . 21 7 . 4 31 Peak Tracking Total 8 | . 5 3 . 4 8 Tactical Retreats 2 | . . . . 1 1 Traps | -11 -10 -10 -10 -9 -8 ------- Run | Yrd Mat Min Exi Min Mat Traps Triggered 2 | . 1 . . . 1 Indirectly . | . . . . . . Trap Hack Attempts . | . . . . . . Triggered . | . . . . . . Disarmed . | . . . . . . Reprogrammed . | . . . . . . Reused . | . . . . . . Traps Extracted . | . . . . . . Installed . | . . . . . . Triggered . | . . . . . . Machines | -11 -10 -10 -10 -9 -8 ---------- Run | Yrd Mat Min Exi Min Mat Machines Disabled 1 | . . . . . 1 Max in Single Turn 1 | . . . . . 1 Machines Repaired . | . . . . . . Machines Dismantled . | . . . . . . Machines Sabotaged . | . . . . . . Overloaded Fab Kills . | . . . . . . Hacking | -11 -10 -10 -10 -9 -8 --------- Run | Yrd Mat Min Exi Min Mat Machines Accessed 10 | . 8 . . . 2 Terminals 8 | . 6 . . . 2 Fabricators . | . . . . . . Repair Stations . | . . . . . . Recycling Units 2 | . 2 . . . . Scanalyzers . | . . . . . . Garrison Access . | . . . . . . Total Hacks 24 | . 19 . . . 5 Successful 14 | . 11 . . . 3 Failed 10 | . 8 . . . 2 Catastrophic 4 | . 3 . . . 1 Database Lockouts . | . . . . . . Manual 3 | . . . 2 . 1 Terminals 22 | . 17 . . . 5 Fabricators . | . . . . . . Repair Stations . | . . . . . . Recycling Units 2 | . 2 . . . . Scanalyzers . | . . . . . . Garrison Access . | . . . . . . Terminal Hacks 12 | . 9 . . . 3 Prototype ID Bank 2 | . 2 . . . . Emergency Access Points 2 | . 2 . . . . Alert Level 3 | . 2 . . . 1 Unreport Threat 1 | . . . . . 1 Locate Traps 3 | . 2 . . . 1 Zone Layout 1 | . 1 . . . . Fabricator Hacks . | . . . . . . Repair Station Hacks . | . . . . . . Recycling Unit Hacks 2 | . 2 . . . . Report Inventory 2 | . 2 . . . . Scanalyzer . | . . . . . . Garrison Access Hacks . | . . . . . . Unauthorized Hacks . | . . . . . . Terminals . | . . . . . . Fabricators . | . . . . . . Repair Stations . | . . . . . . Recycling Units . | . . . . . . Scanalyzers . | . . . . . . Garrison Access . | . . . . . . Data Cores Recovered . | . . . . . . Used . | . . . . . . Hacking Detections 8 | . 6 . . . 2 Full Trace Events 2 | . 1 . . . 1 Feedback Events . | . . . . . . Feedback Blocked . | . . . . . . Robot Schematics Acquired . | . . . . . . Robots Built . | . . . . . . Authchips . | . . . . . . Time . | . . . . . . Total Robot Build Rating . | . . . . . . Part Schematics Acquired . | . . . . . . Parts Built . | . . . . . . Authchips . | . . . . . . Time . | . . . . . . Total Part Build Rating . | . . . . . . Parts Repaired . | . . . . . . Time . | . . . . . . Parts Recycled . | . . . . . . Recycled Matter . | . . . . . . Retrieved Matter . | . . . . . . Retrieved Components . | . . . . . . Parts Scanalyzed . | . . . . . . Part Schematics Acquired . | . . . . . . Parts Damaged . | . . . . . . Bothacking | -11 -10 -10 -10 -9 -8 ------------ Run | Yrd Mat Min Exi Min Mat Used RIF Installer . | . . . . . . Robots Hacked . | . . . . . . Non-combat . | . . . . . . Combat . | . . . . . . Robot Hacks Applied . | . . . . . . Relay Couplers Released . | . . . . . . Fabnet Peak Effective % . | . . . . . . Robots Rewired . | . . . . . . Allies Hacked . | . . . . . . Hacks Repelled . | . . . . . . Allies | -11 -10 -10 -10 -9 -8 -------- Run | Yrd Mat Min Exi Min Mat Total Allies 1 | . . . . 1 . Largest Group 1 | . . . . 1 1 Highest-Rated Group 31 | . . . . 31 31 Highest-Rated Ally 31 | . . . . 31 31 Total Orders . | . . . . . . Ally Attacks 10 | . . . . . 10 Total Damage 165 | . . . . . 165 Kills 1 | . . . . . 1 Allies Corrupted . | . . . . . . Allies Melted . | . . . . . . Intel | -11 -10 -10 -10 -9 -8 ------- Run | Yrd Mat Min Exi Min Mat Robot Analysis Total . | . . . . . . Derelict Logs Recovered 1 | . . 1 . . . Drone Launches . | . . . . . . Drone Recoveries . | . . . . . . Exploration | -11 -10 -10 -10 -9 -8 ------------- Run | Yrd Mat Min Exi Min Mat Turns Passed 4963 | 226 1119 1037 1599 73 909 Spaces Moved 2813 | 98 587 585 1021 50 472 Core 40 | 13 . . . . 27 Treads 1650 | 85 587 585 393 . . Legs 955 | . . . 628 50 277 Wheels . | . . . . . . Hover 42 | . . . . . 42 Flight 126 | . . . . . 126 Fastest Speed 37 | 50 160 160 130 130 37 Average Speed 147 | 145 160 160 144 130 123 Slowest Speed 400 | 160 160 160 160 130 400 Overloaded Moves . | . . . . . . Propulsion Burnouts . | . . . . . . Robots Hopped 4 | . . . . . 4 Cave-ins Triggered 1 | . . . . . 1 Exploration Rate (%) 53 | 5 98 78 91 14 32 Regions Visited 5 Branch Regions 3 Pre-discovered Areas 1 | . . 1 . . . Known Exits Taken . | . . . . . . Unknown Exits Taken 5 | 1 1 1 1 1 . Scrap Searched 1 | . . 1 . . . Spaces Dug . | . . . . . . Terrain Destroyed 44 | . 7 . . 18 19 Melee . | . . . . . . Projectile 4 | . . . . 2 2 AOE 40 | . 7 . . 16 17 Terrain Rammed . | . . . . . . Walls Destroyed . | . . . . . . Machines Disabled . | . . . . . . Actions | -11 -10 -10 -10 -9 -8 --------- Run | Yrd Mat Min Exi Min Mat Total 3254 | 130 668 638 1081 53 684 Wait 116 | . 15 11 9 . 81 Move 2800 | 97 586 584 1020 49 464 Hop 4 | . . . . . 4 Pick Up 24 | 2 8 1 3 . 10 Fast Attach 39 | 7 3 5 5 . 19 Attach 16 | . 2 2 1 . 11 Detach 7 | . . . . . 7 Swap 12 | . 2 1 2 2 5 Drop 35 | . 2 3 10 . 20 Fire 185 | 24 48 21 31 2 59 Melee . | . . . . . . Ram 4 | . . . . . 4 Kick . | . . . . . . Crush 12 | . 2 10 . . . Escape Stasis . | . . . . . . Rewire . | . . . . . . Trap . | . . . . . . Miscellaneous . | . . . . . . Route ------- -11/Scrapyard -10/Materials (discovered 5 exits: [*Mat x3] / [*Min x2]) -10/Mines (discovered 3 exits: [*Mat x2] / *Exi) -10/Exiles -9/Mines (discovered 2 exits: *Mat x2) -8/Materials History --------- Turn | Location | Event 40 | -11/Scrapyard | Discovered new exit (range 15) 227 | -11/Scrapyard | Entered Materials 243 | -10/Materials | Discovered new exit (range 14) 314 | -10/Materials | Build established: Mutant 358 | -10/Materials | Discovered new exit (range 10) 697 | -10/Materials | Discovered new exit (range 8) 798 | -10/Materials | Discovered new exit (range 15) 976 | -10/Materials | Discovered new exit (range 16) 1197 | -10/Materials | Lost 3 parts (1p1n1u) 1346 | -10/Materials | Entered Mines 1439 | -10/Mines | Core integrity fell below 50% 1549 | -10/Mines | Learned Materials stockpile data 1932 | -10/Mines | Discovered new exit (range 10) 1939 | -10/Mines | Discovered new exit (range 14) 2092 | -10/Mines | Deemed a non-threat by the Exiles lab entrance 2094 | -10/Mines | Discovered new exit (range 5) 2135 | -10/Mines | Learned location of Storage (-7) 2383 | -10/Mines | Entered Exiles 2383 | -10/Exiles | Found Exiles lab destroyed 2793 | -10/Exiles | Discovered new exit (range 14) 3832 | -10/Exiles | Build established: Scavenger-Mutant 3982 | -10/Exiles | Entered Mines 3992 | -9/Mines | Discovered new exit (range 8) 4036 | -9/Mines | Discovered new exit (range 9) 4046 | -9/Mines | Received a Mining Laser from a helpful Derelict 4055 | -9/Mines | Entered Materials 4055 | -8/Materials | Accompanied by 1 ally 4055 | -8/Materials | Evolved 4 slots: Utility x4 4740 | -8/Materials | Lost 4 parts (1p2n1w) 4880 | -8/Materials | Crushed by falling debris 4880 | -8/Materials | System corruption reached 10% 4918 | -8/Materials | Core integrity fell below 50% 4962 | -8/Materials | Core integrity fell below 20% 4964 | -8/Materials | Destroyed by Y-45 Defender with Beam Rifle Last Messages --------------- 04918_ K-01 Serf collects debris. 04920_ Particle Gun destroyed. 04920_ Acquired 3 matter. 04920_ U-05 Engineer builds a Wall. 04925_ Acquired Airjet. 04927_ 3CZ DXHG DS8PWECW2YPQBBV9T4 E 04964_ Critical hit (Burn: +37). Map ----- +----------------------------------------------------+ | ?????????????????????????????????????????????????? | | ?????????????????????????????????????????????????? | | ?????????????????????????????????????????????????? | | ?????????????????????????????????????????????????? | | ?????????????????????????????????????????????????? | | ?????????????????????????????????????????????????? | | ?????????????????????????????????????????????????? | | ?????????????????????????????????????????????????? | | ???????? ????????????????????????????????????????? | | ??????????????????????? ???????????????????????? | | ????? ?#??"??????????? ???????????????????????? | | ???????? "?? ?? ?#???? ???????????????????????? | | ? ????? ?? ???#??? ???????????????????????? | | ?????? ??#?####??????## #??????????????????????? | | ? ?#???###???#?#??????# #??????????????????????? | | ??#????#??#?####?###?## #??????????????????????? | | ? ? ? #??#???#??##???# #??????????????????????? | | ?? ???##???######### #??????????????????????? | | ???? ?#??###? # #??????????????????????? | | #?#?########## """ #kk #??????????????????????? | | ####?# """"" #""""" [# ###############????????? | | ####?# ""T"" #""""" # # #????????? | | ?##?## #""""" #tY # #????????? | | ###### # """ # # #????????? | | !##### ! # # #g #????????? | | !#### %[ # # Y@/%g #????????? | | #######+#### # #g #????????? | | ##### ###/###### ###############????????? | | #####% g ###########???????????? | | a# #???????????? | | % % g # #???????????? | | ar # """ """ #???????????? | | ##### % a# """ """ #???????????? | | ###### ###+##### # """ """ #???????????? | | ############## % ^ # # # #???????????? | | ############?# """ ### # ! #???????????? | | # ####?## """ #?# + #???????????? | | # ####### """ #?# ####/####+#???######### | | # # ##### ### #??# #??# #???# | | # # ##### """ ### #??# #??# #???#! """ "" | | / / """ #?# #??# #??# #???# """ "" | | # #### # """ #?# #### #### ##### """ "" | | ######## ## ^ ### #= """ "" | | ### ## + ^^ #?# !#! """ "" | | ### ## ## ### """" ! = +=[ | | ### "" ## ## ### """" %# *""" "" | | ### S"" + ########?# """" # """ "" | | ## "" ## ##??"? ??# ###### # """ "" | | ## ## #? ??"? ?# #????# # """ "" | | ######+## #?? "???# "" #????# # """ "" | +----------------------------------------------------+ Best States ------------- Heat Dissipation 126 Energy Generation 14 Energy Capacity 250 Matter Stores 450 Matter Capacity 450 Sight Range 16 Terrain Scan Range 16 Terrain Scan Density 110 Jamming Range 14 Evasion (%) 62 Recoil Reduction 2 Salvage Targeting 5 Item Schematics ----------------- None Robot Schematics ------------------ None Fabricated ------------ Nothing Alien Tech Used ----------------- None Achievements -------------- No Signal Omniscient Cartographer Total Silence Challenges ------------ None Game ------ Seed CloakingCoreTerrabomb Manual? 0 Play Time 00:48:13 Cumulative 31.0 hours Start 2024.06.13 @ 21:11:31 End 2024.06.13 @ 22:44:00 Sessions 1 Manual Loads 0 Difficulty Rogue Special Mode None Game No. 51 Rogue 51 Adventurer 0 Explorer 0 Win Type - Total 0 Types 0/0/0/0/0/0/0/0/0 Lore% 22 Gallery% 27 Achievement% 21 Wizard Run 0 Options --------- Layout 1 ASCII 0 Keyboard 0 Movement Arrows Keybinds 0 Fullscreen 1 Font 16/SmallcapsGlow Map View 50x40 Zoom Use 0% Tactical HUD 1 Map Filters NONE Filters NONE Steam SD RUN: ecf0856e-f6b5-473e-8ccd-da2bcfdcf4a3